bitfinex/quotes_BTCUSD_20220307
["timestamp","ask_amount","ask_price","bid_price","bid_amount"]
[1646622820109,0.32653,37655.0,37654.0,0.0001]
[1646622820611,0.02653,37653.0,37649.0,0.002]
[1646622820813,0.02653,37651.0,37649.0,0.002]
[1646622821011,0.02653,37651.0,37650.0,0.00796823]
[1646622821012,0.32653,37651.0,37650.0,0.00796823]
[1646622821210,0.47155142,37651.0,37650.0,0.00796823]
[1646622821412,0.17155142,37651.0,37650.0,0.00796823]
[1646622827193,0.47155142,37651.0,37650.0,0.00796823]
[1646622827396,0.17155142,37651.0,37650.0,0.00796823]
[1646622827596,0.47155142,37651.0,37650.0,0.00796823]
[1646622827992,0.57155142,37651.0,37650.0,0.00796823]
[1646622828395,0.57155142,37651.0,37649.0,0.002]
[1646622828594,0.42653,37650.0,37648.0,0.0001]
[1646622828793,0.32153,37649.0,37648.0,0.0001]
[1646622828995,0.46655142,37649.0,37648.0,0.0001]
[1646622830254,0.46655142,37649.0,37647.0,0.0001]
[1646622830255,0.56655142,37649.0,37647.0,0.0001]
[1646622830450,0.42153,37648.0,37647.0,0.0001]
[1646622830850,0.47153,37648.0,37647.0,0.0001]
[1646622831451,0.17153,37648.0,37647.0,0.0001]
[1646622832452,0.17153,37648.0,37643.0,0.0021]
[1646622832453,0.02153,37645.0,37643.0,0.0021]
[1646622833052,0.16655142,37644.0,37643.0,0.0021]
[1646622834705,0.37632142,37648.0,37643.0,0.1421]
[1646622834904,0.579,37654.0,37647.0,0.14]
[1646622835102,0.7421,37655.0,37643.0,0.0021]
[1646622835103,0.7421,37655.0,37644.0,0.0531]
[1646622835503,0.7421,37655.0,37646.0,0.18087717]
[1646622835702,0.19917143,37653.0,37647.0,0.01328]
[1646622835902,0.19917143,37653.0,37647.0,0.01345703]
[1646622836303,0.14502142,37651.0,37647.0,0.01345703]
[1646622836503,0.14502142,37651.0,37647.0,0.00017703]
[1646622837350,0.02653,37652.0,37647.0,0.00017703]
[1646622837750,0.19917143,37653.0,37647.0,0.00017703]
[1646622837954,0.14502142,37651.0,37647.0,0.00017703]
[1646622838552,0.19917143,37653.0,37647.0,0.00017703]
[1646622838752,0.37072285,37653.0,37647.0,0.00017703]
[1646622838951,0.37072285,37653.0,37647.0,0.21619343]
[1646622838952,0.14502142,37651.0,37647.0,0.21619343]
[1646622839756,0.17155142,37651.0,37647.0,0.00017703]
[1646622840352,0.14502142,37651.0,37647.0,0.00017703]
[1646622841306,0.14502142,37651.0,37646.0,0.21709234]
[1646622841307,0.228,37654.0,37646.0,0.21709234]
[1646622841508,1.59829497,37668.0,37648.0,0.02653]
[1646622841509,0.01328,37662.0,37648.0,0.02653]
[1646622841710,0.7727,37668.0,37651.0,0.01506565]
[1646622841711,0.3,37667.0,37651.0,0.01506565]
[1646622841907,0.3,37667.0,37652.0,0.05807858]
[1646622842108,0.3,37667.0,37663.0,0.21016249]
[1646622842307,0.44502142,37669.0,37664.0,0.0531]
[1646622842506,0.22061709,37667.0,37664.0,0.0531]
[1646622842710,0.3,37666.0,37664.0,0.0531]
[1646622843005,0.3,37666.0,37658.0,0.0531]
[1646622843006,0.02653,37665.0,37658.0,0.0531]
[1646622843906,0.02653,37666.0,37658.0,0.0531]
[1646622846167,0.39216851,37667.0,37658.0,0.0531]
[1646622847879,0.39216851,37667.0,37648.0,0.0531]
[1646622847880,1.17653,37658.0,37648.0,0.0531]
[1646622848072,1.17653,37658.0,37643.0,0.0021]
[1646622848073,0.14502142,37649.0,37643.0,0.0021]
[1646622848324,0.8101,37656.0,37655.0,4.56e-06]
[1646622848325,0.97630017,37656.0,37655.0,4.56e-06]
[1646622848524,5.544e-05,37647.0,37643.0,0.0021]
[1646622848920,5.544e-05,37647.0,37646.0,0.14]
[1646622849324,5.544e-05,37647.0,37646.0,0.32247887]
[1646622849923,5.544e-05,37647.0,37646.0,0.19602448]
[1646622850620,5.544e-05,37647.0,37646.0,0.21021955]
[1646622853357,0.01351799,37663.0,37646.0,0.26829813]
[1646622853652,0.50234643,37671.0,37646.0,0.26829813]
[1646622853653,0.77927424,37668.0,37650.0,0.07136158]
[1646622853856,0.7631,37668.0,37663.0,0.16275777]
[1646622854055,0.14502142,37669.0,37663.0,0.16275777]
[1646622854253,0.00999999,37673.0,37663.0,0.16275777]
[1646622854453,0.00999999,37673.0,37663.0,0.44927505]
[1646622854857,0.00999999,37673.0,37670.0,0.21597986]
[1646622855055,0.00999999,37673.0,37672.0,0.14]
[1646622863723,0.00999999,37673.0,37672.0,0.11680227]
[1646622863922,0.00999999,37673.0,37672.0,0.16990227]
[1646622864325,0.00999999,37673.0,37672.0,0.32857749]
[1646622864822,0.00999999,37673.0,37672.0,0.42857749]
[1646622865223,0.00999999,37673.0,37672.0,0.26990227]
[1646622865626,0.00499999,37673.0,37672.0,0.16990227]
[1646622869473,0.1592,37671.0,37654.0,0.1]
[1646622869671,0.1592,37671.0,37650.0,0.37721722]
[1646622869672,0.14502142,37655.0,37650.0,0.37721722]
[1646622869868,0.14502142,37651.0,37645.0,0.1998]
[1646622870072,0.14502142,37647.0,37645.0,0.1998]
[1646622870268,0.14502142,37647.0,37643.0,0.0021]
[1646622870269,0.3,37646.0,37643.0,0.0021]
[1646622870467,0.52675759,37647.0,37643.0,0.0021]
[1646622870703,0.38173617,37647.0,37643.0,0.0021]
[1646622870908,1.8542244,37645.0,37643.0,0.0021]
[1646622871505,0.05,37647.0,37643.0,0.0021]
[1646622872304,0.05,37649.0,37643.0,0.0021]
[1646622872508,0.05,37649.0,37648.0,0.22212499]
[1646622872708,0.05,37649.0,37648.0,0.24532272]
[1646622873106,0.05,37649.0,37648.0,0.22212499]
[1646622873305,0.05,37649.0,37643.0,0.0021]
[1646622873905,0.19502142,37649.0,37643.0,0.0021]
[1646622874766,0.48852914,37649.0,37642.0,0.001]
[1646622874973,0.17653,37643.0,37630.0,0.4476]
[1646622875166,0.17653,37643.0,37624.0,0.001]
[1646622875167,0.02653,37630.0,37624.0,0.001]
[1646622875363,0.05,37629.0,37624.0,0.001]
[1646622877163,0.14502142,37625.0,37620.0,0.01328]
[1646622877367,0.14502142,37625.0,37619.0,0.003]
[1646622877368,0.17155142,37621.0,37619.0,0.003]
[1646622877565,0.56315863,37620.0,37619.0,0.003]
[1646622878212,0.02653,37620.0,37619.0,0.003]
[1646622878415,0.06647738,37622.0,37619.0,0.003]
[1646622878815,0.14502142,37623.0,37619.0,0.003]
[1646622879415,0.02653,37622.0,37619.0,0.003]
[1646622879713,0.14502142,37623.0,37619.0,0.003]
[1646622880412,0.02653,37621.0,37617.0,0.002]
[1646622880614,0.09300391,37621.0,37617.0,0.002]
[1646622880816,0.06647391,37621.0,37617.0,0.002]
[1646622881015,2.51935238,37619.0,37617.0,0.002]
[1646622881416,2.51935238,37619.0,37616.0,0.00082553]
[1646622881715,2.51935238,37619.0,37615.0,0.002]
[1646622881952,0.14502142,37618.0,37615.0,0.002]
[1646622882155,2.51935238,37619.0,37615.0,0.002]
[1646622882352,0.16523311,37616.0,37615.0,0.002]
[1646622883155,0.02653,37618.0,37615.0,0.002]
[1646622883553,0.42139817,37620.0,37615.0,0.002]
[1646622883756,0.05,37620.0,37615.0,0.002]
[1646622884156,0.4935,37627.0,37616.0,0.0489]
[1646622884157,0.65985297,37627.0,37616.0,0.0489]
[1646622884355,0.16635297,37627.0,37618.0,0.20937443]
[1646622884554,0.16635297,37627.0,37619.0,0.0489]
[1646622884857,0.16635297,37627.0,37619.0,0.29213736]
[1646622885059,0.16635297,37627.0,37615.0,0.002]
[1646622885700,0.16635297,37627.0,37616.0,0.00082553]
[1646622885902,0.16635297,37627.0,37616.0,0.21295028]
[1646622886106,0.16635297,37627.0,37617.0,0.18809243]
[1646622886305,0.30270152,37628.0,37617.0,0.18809243]
[1646622886505,0.30270152,37628.0,37622.0,0.22174351]
[1646622886902,0.30270152,37628.0,37617.0,0.18809243]
[1646622887103,0.32923152,37628.0,37619.0,0.76347656]
[1646622887506,0.54352412,37628.0,37619.0,0.76347656]
[1646622887907,0.21149097,37625.0,37619.0,0.76347656]
[1646622888105,0.06646955,37625.0,37623.0,0.00026585]
[1646622888306,0.06646955,37625.0,37624.0,0.00026585]
[1646622888505,0.14502142,37627.0,37624.0,0.00026585]
[1646622888707,0.14502142,37631.0,37619.0,0.76347656]
[1646622888906,0.14502142,37631.0,37615.0,0.00211287]
[1646622888907,0.14502142,37622.0,37615.0,0.00211287]
[1646622889111,0.14502142,37622.0,37600.0,0.10497858]
[1646622889112,1.15,37615.0,37600.0,0.10497858]
[1646622889312,0.3,37621.0,37597.0,0.01395531]
[1646622889313,0.01574566,37619.0,37601.0,0.301]
[1646622889572,0.16941703,37612.0,37602.0,0.01759757]
[1646622889764,0.16941703,37612.0,37603.0,0.01329]
[1646622889969,0.16941703,37612.0,37605.0,0.21983185]
[1646622890166,0.16941703,37612.0,37606.0,0.01328]
[1646622890566,0.02653,37611.0,37604.0,0.01328]
[1646622890767,0.01400896,37610.0,37604.0,0.01328]
[1646622890969,0.14002142,37611.0,37603.0,0.00082581]
[1646622891166,0.16941703,37612.0,37607.0,0.22455163]
[1646622891366,0.16941703,37612.0,37607.0,0.29344103]
[1646622891566,0.14002142,37616.0,37607.0,0.29344103]
[1646622891967,0.11796632,37620.0,37607.0,0.29344103]
[1646622891968,0.01796632,37620.0,37607.0,0.29344103]
[1646622892166,0.31796632,37620.0,37604.0,0.146216]
[1646622892367,0.557,37624.0,37607.0,0.19461469]
[1646622892368,0.01546191,37618.0,37607.0,0.19461469]
[1646622892568,0.18240611,37614.0,37607.0,0.19461469]
[1646622892768,0.01546191,37618.0,37607.0,0.19461469]
[1646622892769,0.3,37615.0,37610.0,0.00082566]
[1646622892972,1.06440572,37614.0,37606.0,0.00062757]
[1646622893221,1.35,37614.0,37606.0,0.00062757]
[1646622893418,1.05,37614.0,37606.0,0.00062757]
[1646622893618,1.05,37614.0,37606.0,0.00049545]
[1646622893619,1.35,37614.0,37606.0,0.00049545]
[1646622893922,0.41987991,37615.0,37606.0,0.17616116]
[1646622894121,0.46987991,37615.0,37606.0,0.17616116]
[1646622894319,0.32985849,37615.0,37606.0,0.17616116]
[1646622894523,0.01328,37621.0,37601.0,0.01719507]
[1646622894524,0.1,37627.0,37601.0,0.001]
[1646622894724,0.1,37627.0,37597.0,0.001]
[1646622894725,0.15,37614.0,37596.0,0.46330991]
[1646622894920,0.2,37616.0,37596.0,0.0489]
[1646622894921,0.45,37613.0,37596.0,0.0489]
[1646622895121,0.01662052,37612.0,37596.0,0.01658461]
[1646622895323,0.3,37619.0,37598.0,0.066477]
[1646622895525,0.00017851,37620.0,37606.0,0.19931388]
[1646622895526,0.15017851,37620.0,37606.0,0.19931388]
[1646622895722,0.21407334,37614.0,37607.0,0.02973095]
[1646622895920,0.15017851,37620.0,37611.0,0.02293192]
[1646622895921,0.00017851,37620.0,37611.0,0.02293192]
[1646622896224,0.00017851,37620.0,37610.0,0.0489]
[1646622896225,0.0001785,37620.0,37610.0,0.0489]
[1646622896420,0.0001785,37620.0,37612.0,0.08143106]
[1646622896623,0.0001785,37620.0,37614.0,0.16656974]
[1646622896820,0.0001785,37620.0,37618.0,0.0124226]
[1646622897053,0.0001785,37620.0,37619.0,0.04916578]
[1646622897253,0.26345379,37629.0,37619.0,0.04916578]
[1646622897455,0.26345379,37629.0,37619.0,0.0489]
[1646622897656,0.26345379,37629.0,37616.0,0.01328]
[1646622897657,0.00018782,37621.0,37616.0,0.01328]
[1646622897853,0.00018782,37621.0,37615.0,0.00077395]
[1646622898453,0.22433147,37621.0,37614.0,0.004]
[1646622898659,0.15,37616.0,37614.0,0.004]
[1646622898854,0.15,37616.0,37614.0,0.00477397]
[1646622899055,0.3,37617.0,37614.0,0.00477397]
[1646622899257,0.05,37617.0,37614.0,0.00477397]
[1646622899455,0.00018806,37620.0,37614.0,0.00077397]
[1646622899654,0.3,37620.0,37612.0,0.24088578]
[1646622899853,0.28862719,37621.0,37612.0,0.24088578]
[1646622900056,0.00018805,37620.0,37612.0,0.2416598]
[1646622900255,0.00018805,37620.0,37615.0,0.17022157]
[1646622900904,0.04249665,37627.0,37615.0,0.17022157]
[1646622901105,0.00018806,37620.0,37615.0,0.17022157]
[1646622901509,0.00018806,37620.0,37614.0,0.00077398]
[1646622902109,0.01655999,37622.0,37609.0,0.11328]
[1646622902314,0.02653,37619.0,37609.0,0.01728]
[1646622902508,0.02653,37619.0,37613.0,0.00077399]
[1646622902509,0.02653,37617.0,37613.0,0.00077399]
[1646622902710,0.02653,37615.0,37613.0,0.00077399]
[1646622902909,0.32653,37615.0,37613.0,0.00077399]
[1646622903413,0.32653,37615.0,37609.0,0.004]
[1646622903414,0.02653,37613.0,37609.0,0.004]
[1646622903608,0.22653,37612.0,37610.0,0.00077405]
[1646622903812,0.31545466,37611.0,37610.0,0.00077405]
[1646622904017,0.01545466,37611.0,37610.0,0.00077405]
[1646622904454,0.31545466,37611.0,37607.0,0.03965837]
[1646622904656,0.46545466,37611.0,37607.0,0.03965837]
[1646622904856,0.26165081,37610.0,37607.0,0.04043249]
[1646622905157,0.05,37610.0,37607.0,0.04043249]
[1646622905360,0.45,37601.0,37598.0,0.00134803]
[1646622905561,0.02653,37598.0,37595.0,0.01346868]
[1646622905856,0.05534931,37599.0,37595.0,0.01346868]
[1646622906059,0.04609,37599.0,37595.0,0.01346868]
[1646622906257,0.04136845,37599.0,37595.0,0.01346868]
[1646622906456,0.34899,37603.0,37595.0,0.01346868]
[1646622906655,0.29899,37602.0,37595.0,0.01346868]
[1646622906856,0.3,37609.0,37595.0,0.01346868]
[1646622907159,0.3,37609.0,37598.0,0.11044677]
[1646622907160,0.01572495,37609.0,37598.0,0.11044677]
[1646622907358,0.01572495,37609.0,37600.0,0.21867245]
[1646622907557,0.01572495,37609.0,37595.0,0.11346868]
[1646622907558,0.02653,37608.0,37595.0,0.11346868]
[1646622907755,0.02653,37608.0,37595.0,0.01346868]
[1646622908411,0.02653,37608.0,37595.0,0.24846163]
[1646622908910,0.02653,37607.0,37595.0,0.24846163]
[1646622909111,0.36572495,37609.0,37595.0,0.24846163]
[1646622909112,0.0838567,37602.0,37595.0,0.31495763]
[1646622909310,0.0838567,37602.0,37597.0,0.14640304]
[1646622909512,0.0838567,37602.0,37601.0,0.02293192]
[1646622909713,0.00020734,37606.0,37602.0,0.08384]
[1646622909910,0.00020734,37606.0,37605.0,0.02293192]
[1646622910114,7.34e-06,37606.0,37605.0,0.22183192]
[1646622910318,0.02702573,37630.0,37606.0,0.24185641]
[1646622910515,0.5748,37634.0,37617.0,0.01270265]
[1646622910812,0.51065247,37640.0,37621.0,0.03704483]
[1646622911011,0.51065247,37640.0,37625.0,0.17750807]
[1646622911012,0.18994668,37636.0,37625.0,0.17750807]
[1646622911215,0.21647668,37636.0,37625.0,0.22640807]
[1646622911410,0.21045181,37633.0,37625.0,0.0489]
[1646622911610,0.21045181,37633.0,37626.0,0.066443]
[1646622912057,0.20322668,37636.0,37626.0,0.066443]
[1646622912258,0.20322668,37636.0,37630.0,0.02293192]
[1646622912560,0.20322668,37636.0,37628.0,0.0489]
[1646622912561,0.04586384,37629.0,37628.0,0.0489]
[1646622912760,0.04586384,37629.0,37628.0,0.16589172]
[1646622912958,0.04586384,37629.0,37628.0,0.16583264]
[1646622913863,0.04586384,37629.0,37628.0,0.20469945]
[1646622914860,0.04586384,37629.0,37628.0,0.27113545]
[1646622915261,0.00020736,37630.0,37629.0,0.9]
[1646622915461,0.01342235,37642.0,37629.0,1.3489]
[1646622915717,0.7023,37655.0,37629.0,1.3489]
[1646622915718,0.1,37666.0,37641.0,0.7617]
[1646622915921,0.1,37667.0,37649.0,0.15]
[1646622916120,0.07419014,37667.0,37658.0,0.01093311]
[1646622916316,0.00922963,37675.0,37668.0,0.2330585]
[1646622916519,0.00922963,37675.0,37669.0,0.0489]
[1646622916714,0.31719037,37681.0,37669.0,0.0489]
[1646622916715,0.01719037,37681.0,37669.0,0.0489]
[1646622917015,0.25,37686.0,37669.0,0.0489]
[1646622917016,0.32664643,37685.0,37670.0,0.01353229]
[1646622917214,0.32664643,37685.0,37681.0,0.21038401]
[1646622917215,0.27474168,37682.0,37681.0,0.21038401]
[1646622917419,0.57474168,37682.0,37681.0,0.0489]
[1646622917614,0.82744382,37682.0,37681.0,0.0489]
[1646622917819,0.82744382,37682.0,37663.0,0.31463686]
[1646622917820,0.01682667,37678.0,37675.0,0.0489]
[1646622918017,0.01457142,37676.0,37675.0,0.0489]
[1646622918216,0.26725884,37679.0,37675.0,0.0489]
[1646622918415,0.01579137,37678.0,37675.0,0.0489]
[1646622918614,0.01699074,37676.0,37675.0,0.0489]
[1646622918815,0.23674407,37676.0,37675.0,0.0489]
[1646622919215,0.05565816,37680.0,37675.0,0.0489]
[1646622919457,0.00020752,37677.0,37675.0,0.0489]
[1646622919756,0.00020752,37677.0,37676.0,0.19033262]
[1646622919956,0.00020752,37677.0,37676.0,0.19059804]
[1646622920155,0.00020752,37677.0,37676.0,0.04916542]
[1646622920358,0.05565816,37680.0,37676.0,0.04916542]
[1646622920557,0.00020752,37678.0,37676.0,0.115255]
[1646622920758,0.00020752,37678.0,37677.0,0.11678367]
[1646622920957,0.00020752,37678.0,37677.0,0.16568367]
[1646622921563,0.3,37678.0,37677.0,0.16568367]
[1646622921758,0.05,37679.0,37677.0,0.16568367]
[1646622921759,0.00020752,37679.0,37677.0,0.16568367]
[1646622921960,0.00020752,37679.0,37677.0,0.0489]
[1646622922664,0.05565816,37680.0,37678.0,0.11674804]
[1646622922861,0.05565816,37680.0,37679.0,0.4072092]
[1646622922862,0.05586568,37680.0,37679.0,0.4072092]
[1646622923309,0.7423767,37680.0,37679.0,0.0489]
[1646622923510,0.95131159,37680.0,37679.0,0.0489]
[1646622923707,0.01767763,37679.0,37672.0,0.0489]
[1646622923915,0.16300967,37678.0,37665.0,0.0489]
[1646622924110,0.3,37677.0,37665.0,0.0489]
[1646622924309,0.25,37672.0,37668.0,0.19432061]
[1646622924509,0.1,37681.0,37670.0,1.15]
[1646622924714,6.05e-05,37683.0,37674.0,0.15]
[1646622924913,6.05e-05,37683.0,37679.0,0.15]
[1646622925109,0.18720962,37696.0,37682.0,0.34895]
[1646622925310,0.18720962,37696.0,37677.0,0.2]
[1646622925311,0.18720962,37696.0,37683.0,0.36185877]
[1646622925510,0.20030007,37691.0,37686.0,0.22015133]
[1646622925707,0.20030007,37691.0,37684.0,0.0489]
[1646622925907,0.01593717,37692.0,37684.0,0.0489]
[1646622926109,0.27521267,37696.0,37684.0,0.0489]
[1646622926716,0.01640674,37698.0,37684.0,0.0489]
[1646622926717,0.23155635,37690.0,37684.0,0.0489]
[1646622926981,0.23155635,37690.0,37679.0,0.13269]
[1646622926982,0.1599213,37682.0,37679.0,0.0489]
[1646622927378,0.1599213,37682.0,37672.0,0.25059233]
[1646622927379,0.01791205,37682.0,37672.0,0.25059233]
[1646622927680,0.01791205,37682.0,37676.0,0.15774981]
[1646622927681,0.01347528,37682.0,37676.0,0.15774981]
[1646622927878,0.00020598,37682.0,37677.0,0.33606917]
[1646622928077,0.00020598,37682.0,37677.0,0.0489]
[1646622928480,0.00020598,37682.0,37677.0,0.11525]
[1646622928678,0.3,37686.0,37677.0,0.11525]
[1646622929079,0.00020598,37681.0,37678.0,0.01325]
[1646622929283,0.00020598,37681.0,37680.0,0.11676818]
[1646622929979,0.01677781,37689.0,37681.0,0.29405761]
[1646622930279,0.44062251,37690.0,37678.0,0.01325]
[1646622930280,0.00020598,37682.0,37678.0,0.31325]
[1646622930481,0.00020598,37682.0,37678.0,0.01325]
[1646622930707,0.00020598,37682.0,37679.0,0.0489]
[1646622930910,0.26325,37701.0,37690.0,0.19130409]
[1646622931109,0.01510904,37701.0,37691.0,0.366327]
[1646622931314,0.28660815,37702.0,37692.0,0.21264519]
[1646622931608,0.20418182,37698.0,37692.0,0.26154519]
[1646622931812,0.20418182,37698.0,37692.0,0.0489]
[1646622932008,0.20418182,37698.0,37686.0,0.0489]
[1646622932009,0.05835435,37697.0,37686.0,0.0489]
[1646622932212,0.05835435,37697.0,37683.0,0.0489]
[1646622932213,0.25,37694.0,37683.0,0.0489]
[1646622932408,0.25,37694.0,37678.0,0.30169233]
[1646622932607,0.25,37694.0,37677.0,0.4877]
[1646622932608,0.25,37694.0,37679.0,0.01326]
[1646622932808,0.16891825,37690.0,37682.0,0.15886062]
[1646622933208,0.05,37689.0,37682.0,0.15886062]
[1646622933408,0.05,37689.0,37677.0,0.31325]
[1646622933608,0.05,37689.0,37677.0,0.01325]
[1646622934008,0.05,37689.0,37679.0,0.25688126]
[1646622934209,0.13660043,37689.0,37677.0,0.01325]
[1646622934473,0.13660043,37689.0,37674.0,0.00010827]
[1646622934474,0.25,37683.0,37674.0,0.00010827]
[1646622934676,0.25,37683.0,37674.0,0.00610827]
[1646622934677,0.06396458,37682.0,37674.0,0.00610827]
[1646622934870,0.05,37682.0,37674.0,0.00610827]
[1646622935070,0.26787817,37700.0,37675.0,1.15]
[1646622935275,0.1,37700.0,37679.0,0.18121983]
[1646622935469,0.00082181,37706.0,37687.0,0.15]
[1646622935671,0.00082181,37706.0,37692.0,0.01518239]
[1646622935870,0.00082181,37706.0,37693.0,0.06214]
[1646622936169,0.01690732,37711.0,37691.0,0.30936772]
[1646622936170,0.26205697,37701.0,37691.0,0.30936772]
[1646622936371,0.01334653,37700.0,37691.0,0.0489]
[1646622936770,0.31334653,37700.0,37691.0,0.0489]
[1646622936970,0.01334653,37700.0,37691.0,0.0489]
[1646622937172,0.56205697,37701.0,37691.0,0.0489]
[1646622937369,0.26205697,37701.0,37692.0,0.21839508]
[1646622937569,0.04,37701.0,37692.0,0.26729508]
[1646622937770,0.31769308,37707.0,37692.0,0.26729508]
[1646622937969,0.21703365,37706.0,37693.0,0.15943175]
[1646622938206,0.21703365,37706.0,37692.0,0.26729508]
[1646622938207,0.3,37705.0,37692.0,0.26729508]
[1646622938608,0.53047618,37705.0,37692.0,0.38053508]
[1646622939007,0.31769308,37707.0,37692.0,0.38053508]
[1646622939209,0.31769308,37707.0,37695.0,0.066319]
[1646622939210,0.24013384,37705.0,37695.0,0.066319]
[1646622939411,0.17028003,37705.0,37695.0,0.066319]
[1646622939612,0.22028003,37705.0,37692.0,0.38053508]
[1646622939913,0.22028003,37705.0,37696.0,0.19419095]
[1646622939914,0.00020719,37702.0,37696.0,0.19419095]
[1646622940309,0.00020719,37702.0,37696.0,0.01324]
[1646622940513,0.00020719,37702.0,37695.0,0.066319]
[1646622940710,0.00020719,37702.0,37696.0,0.01324]
[1646622940910,0.0169794,37704.0,37698.0,0.29406468]
[1646622941113,0.2918846,37708.0,37698.0,0.0489]
[1646622941114,0.00020719,37701.0,37698.0,0.0489]
[1646622941310,0.00082862,37707.0,37698.0,0.0489]
[1646622941311,0.00082862,37707.0,37700.0,0.11672636]
[1646622941511,0.3163409,37707.0,37694.0,0.06214]
[1646622941712,0.3163409,37707.0,37694.0,0.062238]
[1646622941960,0.31551228,37707.0,37694.0,0.062238]
[1646622942159,0.01551228,37707.0,37694.0,0.062238]
[1646622942358,0.01417658,37706.0,37699.0,0.22332365]
[1646622942565,0.01417658,37706.0,37694.0,0.062238]
[1646622942566,0.16467395,37708.0,37707.0,0.02199688]
[1646622942758,0.22962696,37708.0,37707.0,0.02199688]
[1646622942959,0.51467395,37708.0,37707.0,0.02199688]
[1646622943359,0.54120395,37708.0,37707.0,0.02199688]
[1646622943759,0.69120395,37708.0,37707.0,0.02199688]
[1646622944159,0.54120395,37708.0,37707.0,0.02199688]
[1646622944960,1.15,37707.0,37694.0,9.8e-05]
[1646622945167,0.00020719,37709.0,37698.0,0.00026517]
[1646622945464,0.00020719,37709.0,37703.0,0.01311405]
[1646622945742,0.4954,37723.0,37703.0,0.01311405]
[1646622945743,0.4954,37723.0,37707.0,0.00026507]
[1646622945933,0.4954,37723.0,37703.0,0.31311405]
[1646622945934,0.4954,37723.0,37708.0,0.0489]
[1646622946134,0.40251188,37722.0,37709.0,0.0489]
[1646622946436,0.40251188,37722.0,37710.0,0.132574]
[1646622946636,0.2498,37727.0,37717.0,0.066282]
[1646622946833,0.079524,37730.0,37717.0,0.066282]
[1646622946834,0.066284,37730.0,37717.0,0.115182]
[1646622947034,0.066284,37730.0,37717.0,0.415182]
[1646622947235,0.06878017,37731.0,37717.0,0.115182]
[1646622947436,0.06878017,37731.0,37717.0,0.0489]
[1646622947635,0.15490987,37724.0,37717.0,0.0489]
[1646622949561,0.00020685,37722.0,37717.0,0.13255]
[1646622949760,0.00020685,37722.0,37718.0,0.0489]
[1646622950364,0.00020685,37722.0,37720.0,0.19212549]
[1646622950560,0.50894,37736.0,37721.0,0.3489]
[1646622950561,0.20626815,37733.0,37721.0,0.3489]
[1646622950762,0.00082729,37728.0,37725.0,0.24524632]
[1646622951361,0.00082729,37728.0,37726.0,0.18420563]
[1646622951762,0.20626815,37733.0,37726.0,0.18420563]
[1646622952062,0.00020685,37728.0,37726.0,0.18420563]
[1646622952663,0.00020685,37728.0,37727.0,0.00026507]
[1646622952865,0.00125,37736.0,37727.0,0.00026507]
[1646622953061,0.00125,37736.0,37728.0,0.22297591]
[1646622953311,0.00020685,37729.0,37726.0,0.23310563]
[1646622953510,0.00020685,37729.0,37728.0,0.00026496]
[1646622954111,0.15678865,37733.0,37728.0,0.00026496]
[1646622954312,0.00125,37736.0,37726.0,0.51073563]
[1646622954313,0.00019801,37730.0,37726.0,0.51073563]
[1646622954513,0.00019801,37730.0,37729.0,0.11657945]
[1646622954712,0.00019801,37730.0,37729.0,0.34916494]
[1646622955111,0.00019801,37730.0,37729.0,0.44916494]
[1646622955313,0.00125,37736.0,37731.0,0.02653]
[1646622955516,0.00125,37736.0,37735.0,0.00026496]
[1646622955714,0.00125,37736.0,37735.0,0.04916496]
[1646622956212,0.01324,37754.0,37737.0,0.02653]
[1646622956416,0.50014,37759.0,37738.0,0.07543]
[1646622956614,0.50014,37759.0,37740.0,0.092768]
[1646622956615,0.24458984,37755.0,37740.0,0.092768]
[1646622956816,0.24458984,37755.0,37744.0,0.21731503]
[1646622957055,0.24458984,37755.0,37745.0,0.07543]
[1646622957262,0.3,37758.0,37745.0,0.07543]
[1646622957263,0.21941962,37756.0,37745.0,0.07543]
[1646622957459,0.21941962,37756.0,37745.0,0.0489]
[1646622957857,0.3,37755.0,37745.0,0.0489]
[1646622958059,0.00019785,37752.0,37745.0,0.0489]
[1646622958259,0.00019785,37752.0,37749.0,0.11654703]
[1646622958457,0.00019785,37752.0,37750.0,0.0489]
[1646622958458,0.20724602,37751.0,37750.0,0.0489]
[1646622958657,0.20724602,37751.0,37750.0,0.16544857]
[1646622958858,0.20724602,37751.0,37750.0,0.16544703]
[1646622959059,0.20724602,37751.0,37744.0,0.0489]
[1646622959060,0.69979703,37751.0,37744.0,0.0489]
[1646622959258,0.08216575,37748.0,37741.0,0.0489]
[1646622959956,0.28363596,37748.0,37741.0,0.0489]
[1646622960157,0.08216575,37748.0,37741.0,0.0489]
[1646622960357,0.39962865,37745.0,37741.0,0.0489]
[1646622960564,0.21374145,37745.0,37744.0,0.11658872]
[1646622960814,0.21374145,37745.0,37737.0,0.0489]
[1646622961015,0.3,37744.0,37737.0,0.0489]
[1646622961214,0.08216575,37748.0,37737.0,0.0489]
[1646622961416,0.08216575,37748.0,37747.0,9.114e-05]
[1646622962015,0.38216575,37748.0,37747.0,9.114e-05]
[1646622962217,0.10869575,37748.0,37747.0,9.114e-05]
[1646622962417,0.35869575,37748.0,37747.0,9.114e-05]
[1646622962617,0.08216575,37748.0,37747.0,9.114e-05]
[1646622963816,0.08216575,37748.0,37747.0,3.114e-05]
[1646622964879,0.38216575,37748.0,37747.0,3.114e-05]
[1646622965076,0.08216575,37748.0,37747.0,3.114e-05]
[1646622965276,0.38216575,37748.0,37747.0,3.114e-05]
[1646622965476,0.40869575,37748.0,37747.0,3.114e-05]
[1646622965883,0.08216575,37748.0,37747.0,3.114e-05]
[1646622966078,0.08216575,37748.0,37736.0,0.005]
[1646622966278,0.08216575,37748.0,37747.0,9.114e-05]
[1646622966480,0.01324,37756.0,37747.0,9.114e-05]
[1646622966481,0.04977822,37766.0,37749.0,1.15]
[1646622966681,0.04977822,37766.0,37750.0,0.3489]
[1646622966885,0.1,37766.0,37764.0,0.28282]
[1646622967278,0.1,37767.0,37764.0,0.28282]
[1646622967479,0.01323,37779.0,37764.0,0.28282]
[1646622967881,0.22093093,37771.0,37764.0,0.4606417]
[1646622968079,0.28579096,37776.0,37765.0,0.3]
[1646622968309,0.16877737,37773.0,37765.0,0.0489]
[1646622968514,0.16877737,37773.0,37765.0,0.1489]
[1646622968811,0.21308886,37767.0,37765.0,0.0489]
[1646622969210,0.01323,37780.0,37765.0,0.0489]
[1646622969412,0.06878017,37782.0,37765.0,0.0489]